bitfinex-derivatives/quotes_SOLF0:USTF0_20251107
["timestamp","ask_amount","ask_price","bid_price","bid_amount"]
[1762482934591,7.72206059,156.9,156.89,0.00292259]
[1762482936489,9.00206059,156.9,156.89,0.00292259]
[1762482936702,14.0006546,156.9,156.89,0.00292259]
[1762482938304,13.99749773,156.9,156.89,0.00292259]
[1762482939097,12.71749773,156.9,156.89,0.00292259]
[1762482941203,13.98122903,156.9,156.89,0.00292259]
[1762482942098,7.68968723,156.9,156.89,0.00292259]
[1762482943002,7.68664743,156.9,156.89,0.00292259]
[1762482943394,7.68598582,156.9,156.89,0.00292259]
[1762482944195,12.69427983,156.9,156.89,0.00292259]
[1762482944401,7.68598582,156.9,156.89,0.00292259]
[1762482946203,3.14,156.9,156.89,0.00292259]
[1762482948602,3.11,156.92,156.89,0.00292259]
[1762482948805,3.11,156.91,156.89,0.00292259]
[1762482949205,3.11,156.9,156.89,0.00292259]
[1762482949401,7.65345125,156.9,156.89,0.00292259]
[1762482949594,3.11,156.9,156.89,0.00292259]
[1762482949797,12.65848626,156.9,156.89,0.00292259]
[1762482950194,7.65390844,156.9,156.89,0.00292259]
[1762482950607,12.65836908,156.9,156.89,0.00292259]
[1762482950905,12.6584022,156.9,156.89,0.00292259]
[1762482952107,7.65390844,156.9,156.89,0.00292259]
[1762482952405,3.11,156.9,156.89,0.00292259]
[1762482960210,7.64862402,156.9,156.89,0.00292259]
[1762482960815,3.11,156.9,156.89,0.00292259]
[1762482962813,8.8953715,156.93,156.89,0.00292259]
[1762482963011,0.0470715,156.93,156.92,2.13]
[1762482963608,0.0470715,156.93,156.9,2.13]
[1762482963811,3.1570715,156.93,156.89,3.96405977]
[1762482964213,3.1570715,156.93,156.89,2.13292259]
[1762482964515,3.11,156.9,156.89,0.00292259]
[1762482964713,9.55967549,156.9,156.89,0.00292259]
[1762482966519,10.83967549,156.9,156.78,1.83113718]
[1762482966720,1.83113718,156.87,156.78,1.83113718]
[1762482966920,3.11,156.85,156.78,1.83113718]
[1762482967123,7.65788962,156.84,156.78,1.83113718]
[1762482967322,7.6695569,156.83,156.79,2.13]
[1762482967522,3.11,156.82,156.79,0.04685328]
[1762482968112,0.04727646,156.83,156.79,2.17685328]
[1762482968320,8.89917646,156.83,156.79,2.17685328]
[1762482969719,3.15727646,156.83,156.79,2.17685328]
[1762482970316,0.04727646,156.83,156.8,2.13]
[1762482970627,3.25727646,156.83,156.79,4.00799046]
[1762482970818,3.25727646,156.83,156.8,2.13]
[1762482971015,3.25727646,156.83,156.79,4.00799046]
[1762482971426,9.58473773,156.82,156.79,4.00799046]
[1762482971626,4.56049825,156.81,156.79,4.00799046]
[1762482971819,8.99927646,156.83,156.79,0.04685328]
[1762482972022,3.21,156.81,156.79,0.04685328]
[1762482972221,3.21,156.79,156.72,2.13]
[1762482972526,3.21,156.79,156.7,1.83113718]
[1762482972527,3.21,156.77,156.7,1.83113718]
[1762482972727,3.21,156.75,156.7,1.83113718]
[1762482972924,3.21,156.73,156.7,1.83113718]
[1762482973226,0.04831396,156.73,156.7,4.00396405]
[1762482973429,0.04831396,156.73,156.71,2.13]
[1762482973927,0.04831396,156.73,156.72,3.96113718]
[1762482974717,0.04831396,156.73,156.72,5.24113718]
[1762482975031,9.14271625,156.88,156.73,2.13]
[1762482975332,9.57084628,156.87,156.83,2.13]
[1762482975527,3.21,156.89,156.84,3.96113718]
[1762482975828,9.61652585,156.88,156.85,2.17820364]
[1762482976022,4.55359809,156.87,156.85,2.17820364]
[1762482976215,0.04724441,156.88,156.86,3.96113718]
[1762482976421,4.55273529,156.91,156.87,2.13]
[1762482976634,46.74271625,156.96,156.87,2.13]
[1762482976820,8.22501446,156.95,156.87,2.13]
[1762482977017,5.01501446,156.94,156.88,5.7399]
[1762482977217,5.01501446,156.93,156.89,2.13]
[1762482977524,0.04894035,156.93,156.89,2.1731049]
[1762482978024,3.25894035,156.93,156.89,2.1731049]
[1762482978222,3.21,156.91,156.89,0.0431049]
[1762482978526,3.25894035,156.93,156.89,0.0431049]
[1762482979931,3.25894035,156.93,156.89,2.1731049]
[1762482980830,3.25894035,156.93,156.89,0.0431049]
[1762482981022,8.99734035,156.93,156.89,0.0431049]
[1762482981222,3.21,156.92,156.89,0.0431049]
[1762482983734,0.04894035,156.93,156.89,0.0431049]
[1762482983931,3.25894035,156.93,156.89,0.0431049]
[1762482984829,0.04894035,156.93,156.89,2.1731049]
[1762482985327,0.04894035,156.93,156.92,2.13]
[1762482985832,3.21,157.0,156.92,2.13]
[1762482986026,3.21,157.0,156.93,7.868]
[1762482986731,13.95666202,157.0,156.93,2.13]
[1762482986935,3.25631086,156.98,156.95,0.0435301]
[1762482987130,0.04631086,156.98,156.95,2.1735301]
[1762482987536,0.04631086,156.98,156.95,0.0435301]
[1762482988029,0.04631086,156.98,156.95,2.1735301]
[1762482988330,0.04631086,156.98,156.95,3.4535301]
[1762482988537,7.74052027,157.04,157.0,2.13]
[1762482988838,3.21,157.04,157.0,2.13]
[1762482989229,7.73677495,157.06,156.94,4.29083743]
[1762482989433,0.03852631,157.02,156.98,2.17826861]
[1762482989731,0.03852631,157.02,157.01,2.13]
[1762482990232,0.03852631,157.02,157.01,3.41]
[1762482990537,3.21,157.08,157.02,7.8645]
[1762482991432,3.21,157.08,157.03,0.04520023]
[1762482991632,3.21,157.06,157.04,0.04244939]
[1762482992342,7.73173683,157.09,157.04,2.17244939]
[1762482992532,3.21,157.09,157.04,2.17244939]
[1762482993033,4.52173683,157.11,157.04,2.17244939]
[1762482993335,15.21703498,157.15,157.08,2.13]
[1762482993536,3.21,157.14,157.1,0.04409368]
[1762482993938,3.21,157.14,157.1,2.17409368]
[1762482994242,3.21,157.17,157.1,2.17409368]
[1762482995239,3.21,157.22,157.1,2.17409368]
[1762482995434,3.21,157.22,157.14,0.04771324]
[1762482996630,3.21,157.21,157.14,0.04771324]
[1762482997331,3.21,157.17,157.14,0.04771324]
[1762482997533,3.21,157.15,157.02,2.13]
[1762482997733,5.7318,157.11,157.02,7.8645]
[1762482997930,8.7618,157.11,157.03,2.12]
[1762482998544,0.04297305,157.09,157.05,0.04230784]
[1762482998941,3.07297305,157.09,157.05,0.04230784]
[1762483000438,8.80547305,157.09,157.05,0.04230784]
[1762483000641,3.12,157.06,156.95,2.12]
[1762483001144,3.12,157.01,156.95,2.12]
[1762483001638,8.1258788,157.0,156.96,0.04025948]
[1762483001843,3.16829737,157.0,156.96,0.04025948]
[1762483002149,3.12,156.98,156.96,0.04025948]
[1762483002437,4.95903346,156.97,156.91,2.12]
[1762483002639,3.12,156.98,156.91,2.12]
[1762483002640,8.080037,156.96,156.91,2.12]
[1762483002846,3.12,156.96,156.91,2.12]
[1762483003036,3.12,156.96,156.87,2.12]
[1762483003544,0.04848196,156.93,156.9,0.04285735]
[1762483003733,0.04848196,156.93,156.9,2.16285735]
[1762483004244,0.04848196,156.93,156.91,2.12]
[1762483004844,0.04848196,156.93,156.91,3.4]
[1762483005041,4.96050242,156.97,156.91,3.4]
[1762483005242,3.12,156.98,156.91,2.12]
[1762483005441,4.96168723,156.97,156.91,2.12]
[1762483005643,8.8549,157.02,156.92,2.12]
[1762483005843,4.96164485,157.01,156.92,2.12]
[1762483006046,0.04576889,156.98,156.95,2.1634514]
[1762483007848,0.04576889,156.98,156.96,2.12]
[1762483008241,0.04576889,156.98,156.95,2.1634514]
[1762483010246,0.04576889,156.98,156.96,2.12]
[1762483010448,0.04576889,156.98,156.96,7.8567]
[1762483010638,4.95915622,157.03,156.97,2.12]
[1762483010842,3.12,157.05,156.97,2.12]
[1762483011146,4.95907834,157.04,156.98,2.12]
[1762483011443,3.12,157.05,156.98,2.12]
[1762483011645,0.03602971,157.03,156.99,2.16360106]
[1762483012860,3.15602971,157.03,156.99,0.04360106]
[1762483013051,4.96161704,157.02,156.99,0.04360106]
[1762483013240,3.15602971,157.03,156.99,0.04360106]
[1762483013441,3.12,157.01,156.92,2.12]
[1762483013645,3.12,156.99,156.92,2.12]
[1762483013853,4.9632019,156.98,156.92,2.12]
[1762483014154,4.96662067,156.97,156.88,2.12]
[1762483014348,4.96662067,156.96,156.88,2.12]
[1762483014548,3.16805472,156.94,156.91,0.04349934]
[1762483014848,8.0906996,156.93,156.91,0.04222977]
[1762483015045,0.04343678,156.94,156.91,0.04222977]
[1762483015239,0.04343678,156.94,156.91,2.16222977]
[1762483015445,5.93271625,157.03,156.93,5.7378]
[1762483015446,3.12,157.01,156.93,5.7378]
[1762483015654,4.96928187,157.0,156.93,2.12]
[1762483015946,3.12,157.01,156.93,2.12]
[1762483016149,7.93327614,157.0,156.93,2.12]
[1762483016353,4.81327614,156.99,156.93,2.12]
[1762483016548,13.22548084,157.06,156.94,0.04234941]
[1762483016549,3.15619399,156.98,156.94,0.04234941]
[1762483016748,3.15619399,156.98,156.94,0.04272981]
[1762483017354,7.94074325,156.97,156.94,0.04272981]
[1762483017553,3.12,156.97,156.94,0.04272981]
[1762483018058,3.12,156.95,156.94,0.04272981]
[1762483018356,7.94113171,156.95,156.94,0.04272981]
[1762483019151,7.95470485,156.95,156.94,0.04272981]
[1762483019649,4.83470485,156.95,156.94,0.04272981]
[1762483020748,0.03619399,156.98,156.94,2.16272981]
[1762483022248,3.12,156.96,156.94,0.04272981]
[1762483022455,0.03619399,156.98,156.84,91.78]
[1762483022456,3.12,156.92,156.85,2.12]
[1762483022751,7.96270702,156.91,156.85,2.12]
[1762483022956,4.84270702,156.9,156.85,2.12]
[1762483023157,4.84363893,156.89,156.85,2.12]
[1762483023356,0.04789753,156.89,156.85,2.16797271]
[1762483024049,3.12,156.87,156.8,2.12]
[1762483024255,4.84334193,156.86,156.8,2.12]
[1762483024454,4.84334193,156.85,156.8,2.12]
[1762483024649,4.84334193,156.84,156.76,2.12]
[1762483024956,4.84445236,156.83,156.76,2.12]
[1762483025155,0.04897275,156.81,156.78,0.04188796]
[1762483025643,0.04897275,156.81,156.78,2.16188796]
[1762483026056,0.04897275,156.81,156.79,5.7429]
[1762483026349,0.04897275,156.81,156.8,2.12]
[1762483026952,3.12,156.89,156.81,2.12]
[1762483027154,3.12,156.89,156.83,5.7416]
[1762483027946,0.04583419,156.88,156.84,0.04837977]
[1762483028155,3.16583419,156.88,156.84,0.04837977]
[1762483028748,3.16583419,156.88,156.84,2.16837977]
[1762483028749,0.04583419,156.88,156.84,2.16837977]
[1762483029154,0.04583419,156.88,156.86,7.8604]
[1762483029459,0.04583419,156.88,156.87,2.12]
[1762483030753,5.7371,156.96,156.87,3.4]
[1762483030954,4.87292654,156.95,156.87,2.12]
[1762483031151,2.97,156.97,156.87,2.12]
[1762483031458,2.97,156.95,156.87,2.12]
[1762483031656,2.97,157.01,156.87,2.12]
[1762483031855,0.03208956,156.96,156.92,2.16227959]
[1762483032053,0.03208956,156.96,156.92,2.16047657]
[1762483035750,3.00208956,156.96,156.92,0.04047657]
[1762483037157,3.00208956,156.96,156.84,7.29276459]
[1762483037158,3.00208956,156.96,156.85,2.12]
[1762483037364,2.97,156.91,156.81,2.12]
[1762483037664,2.97,156.91,156.82,5.742]
[1762483038058,2.97,156.91,156.83,5.7415]
[1762483038263,2.97,156.95,156.83,2.12]
[1762483038454,0.04742477,156.89,156.86,2.12]
[1762483038655,2.97,156.98,156.88,2.12]
[1762483039165,7.68732175,156.97,156.88,2.12]
[1762483039363,2.97,157.01,156.88,2.12]
[1762483039565,7.68749174,157.0,156.88,2.12]
[1762483039865,0.02514137,156.96,156.92,2.16360788]
[1762483040463,2.99514137,156.96,156.92,0.04360788]
[1762483041464,7.69813037,156.95,156.92,0.04360788]
[1762483041666,2.97,156.95,156.92,0.04360788]
[1762483042266,2.97,156.93,156.92,0.04360788]
[1762483042466,0.02514137,156.96,156.92,0.04360788]
[1762483042666,2.97,156.94,156.92,0.04360788]
[1762483042868,4.73549421,156.93,156.92,0.04360788]
[1762483044065,2.97,156.92,156.84,2.12]
[1762483044261,2.97,156.9,156.8,2.12]
[1762483044457,9.71042151,156.91,156.79,65.32]
[1762483044458,2.97,156.87,156.79,65.32]
[1762483044767,9.71226496,156.86,156.79,67.44]
[1762483044959,4.97651916,156.88,156.8,2.12]
[1762483045275,0.04256694,156.84,156.81,2.16811086]
[1762483045768,8.7082,156.93,156.83,2.12]
[1762483045974,2.97,156.98,156.83,2.12]
[1762483046167,9.71697534,156.97,156.89,2.12]
[1762483046359,4.74168953,156.96,156.89,2.12]
[1762483046560,4.97545969,157.0,156.93,5.7379]
[1762483046863,0.02618231,156.98,156.95,0.04309302]
[1762483047069,4.74189625,156.97,156.95,0.04309302]
[1762483047366,4.74189625,156.96,156.95,0.04309302]
[1762483048166,0.02618231,156.98,156.95,0.04309302]
[1762483050876,2.99618231,156.98,156.95,0.04309302]
[1762483051074,12.68596563,156.97,156.95,0.04309302]
[1762483051270,4.74083116,156.96,156.95,0.04309302]
[1762483051476,0.02618231,156.98,156.95,0.04309302]
[1762483052068,2.99618231,156.98,156.95,0.04309302]
[1762483052470,2.97,156.96,156.95,0.04309302]
[1762483052677,7.71159522,156.96,156.95,0.04309302]
[1762483053075,2.97,156.95,156.88,2.12]
[1762483053373,4.74159522,156.94,156.88,2.12]
[1762483053570,4.97717755,156.98,156.88,2.12]
[1762483053878,9.7207142,156.97,156.9,5.739]
[1762483054066,0.04107881,156.95,156.92,0.04410377]
[1762483054269,0.04107881,156.95,156.92,2.16410377]
[1762483054572,0.04107881,156.95,156.92,0.04410377]
[1762483055366,0.04107881,156.95,156.92,2.16410377]
[1762483057071,0.04107881,156.95,156.92,7.90260377]
[1762483057776,0.04107881,156.95,156.92,0.04410377]
[1762483058073,0.04107881,156.95,156.92,2.15410377]
[1762483058378,0.04107881,156.95,156.94,2.11]
[1762483058780,0.04107881,156.95,156.93,5.7378]
[1762483059081,0.04107881,156.95,156.94,2.11]
[1762483060082,0.04107881,156.95,156.93,5.7378]
[1762483060482,0.04107881,156.95,156.92,0.04410377]
[1762483061478,0.04107881,156.95,156.94,2.12]
[1762483067384,3.07107881,156.95,156.92,0.04410377]
[1762483067583,0.04107881,156.95,156.92,2.16410377]
[1762483068772,5.93014042,157.06,156.94,2.12]
[1762483068773,4.72113467,156.99,156.94,2.12]
[1762483068979,4.71981176,157.03,156.94,2.12]
[1762483069176,8.96014042,157.13,156.98,2.12]
[1762483069375,9.70814204,157.12,157.0,2.12]
[1762483069577,4.71622136,157.11,157.0,2.12]
[1762483069779,4.71622136,157.1,157.0,2.12]
[1762483069979,0.02819652,157.07,157.04,2.168718]
[1762483070176,4.70553367,157.12,157.04,2.168718]
[1762483070380,4.98841865,157.15,157.04,2.12]
[1762483070580,4.70256865,157.14,157.06,2.12]
[1762483070781,4.70256865,157.13,157.09,2.12]
[1762483070981,4.98841865,157.16,157.09,2.12]
[1762483071181,4.70256804,157.15,157.09,2.12]
[1762483071383,3.03,157.13,157.1,0.04410428]
[1762483071880,8.7604,157.15,157.1,2.16410428]
[1762483072081,4.69926031,157.14,157.1,2.16410428]
[1762483072285,3.03,157.14,157.1,0.04410428]
[1762483072590,5.93014042,157.2,157.1,0.04410428]
[1762483072591,3.03,157.12,157.1,0.04410428]
[1762483072791,3.03,157.12,157.09,0.04076409]
[1762483074091,3.03,157.1,157.09,0.04076409]
[1762483074283,3.03,157.1,157.08,0.0479797]
[1762483074796,9.26065614,157.16,157.08,0.0479797]
[1762483074797,3.03,157.13,157.08,0.0479797]
[1762483074994,3.03,157.11,157.08,0.0479797]
[1762483075294,3.03,157.09,157.08,0.0479797]
[1762483075485,7.7223269,157.09,157.08,0.0479797]
[1762483075886,3.03,157.08,157.01,65.26]
[1762483076192,7.7233178,157.07,157.01,65.26]
[1762483076396,3.03,157.05,156.94,2.12]
[1762483076587,7.72433061,157.04,156.95,2.12]
[1762483076790,3.0779797,157.01,156.98,0.04868867]
[1762483077301,0.0479797,157.01,156.98,0.04868867]
[1762483078600,0.0479797,157.01,156.98,2.16868867]
[1762483079002,3.0779797,157.01,156.98,0.04868867]
[1762483079203,0.0479797,157.01,156.98,0.04868867]
[1762483080097,0.0479797,157.01,156.98,2.16868867]
[1762483080990,7.83426708,157.14,156.99,2.12]
[1762483080991,7.72211251,157.08,156.99,2.12]
[1762483081198,3.03,157.08,156.99,2.12]
[1762483081498,8.7629,157.08,156.99,7.8557]
[1762483081703,4.69077197,157.07,156.99,7.8557]
[1762483081997,10.21115752,157.13,157.01,0.04774948]
[1762483081998,3.03,157.05,157.01,0.04774948]
[1762483082191,3.03,157.03,156.91,2.12]
[1762483082390,3.03,157.01,156.91,2.12]
[1762483082595,3.03,156.99,156.91,2.12]
[1762483082793,3.03,156.97,156.88,2.12]
[1762483083304,0.04404014,156.94,156.93,4.2810171]
[1762483083605,3.03,157.08,156.94,2.08]
[1762483083798,8.7643,157.04,156.95,2.08]
[1762483083999,4.69524369,157.03,156.95,2.08]
[1762483084298,8.7643,157.04,156.95,2.08]
[1762483084499,3.03,157.02,156.98,0.04437205]
[1762483086100,8.7635,157.06,156.98,0.04437205]
[1762483086304,3.03,157.04,157.0,0.04237752]
[1762483086716,3.03,157.02,156.9,2.08]
[1762483086915,7.72605876,157.01,156.9,2.08]
[1762483087206,3.03,157.01,156.9,2.08]
[1762483087410,3.03,156.99,156.9,2.08]
[1762483087800,0.04123733,156.96,156.93,2.16561044]
[1762483088006,0.04239826,156.96,156.93,2.16828014]
[1762483088702,0.04239826,156.96,156.94,5.7377]
[1762483088906,3.07239826,156.96,156.93,0.04828014]
[1762483090115,0.04239826,156.96,156.93,2.16828014]
[1762483091211,3.17239826,156.96,156.93,0.04828014]
[1762483092722,0.04239826,156.96,156.93,0.04828014]
[1762483093013,8.90939826,156.96,156.93,0.04828014]
[1762483093216,7.84893925,156.95,156.93,0.04828014]
[1762483093412,0.04239826,156.96,156.93,0.04828014]
[1762483093618,0.04239826,156.96,156.93,2.17828014]
[1762483093916,3.17239826,156.96,156.93,0.04828014]
[1762483095421,0.04239826,156.96,156.93,0.04828014]
[1762483095622,3.17239826,156.96,156.93,0.04828014]
[1762483096219,0.04239826,156.96,156.93,2.17828014]
[1762483096821,0.04239826,156.96,156.95,2.13]
[1762483097024,3.13,157.03,156.95,2.13]
[1762483098026,3.13,157.03,156.97,5.78260862]
[1762483098215,3.13,157.03,156.97,0.04600862]
[1762483098419,3.13,157.01,156.97,0.04600862]
[1762483098620,3.13,157.01,156.97,0.04216248]
[1762483098820,3.13,156.99,156.97,0.04216248]
[1762483099218,3.13,156.98,156.97,0.04216248]
[1762483099529,3.13,156.97,156.86,4.2810171]
[1762483099732,3.13,156.95,156.86,4.2810171]
[1762483100028,8.8679,156.94,156.86,4.2810171]
[1762483100326,3.17216248,156.92,156.88,0.04311268]
[1762483100623,0.04216248,156.92,156.88,2.17311268]
[1762483101323,0.04216248,156.92,156.88,0.04311268]
[1762483101518,3.17216248,156.92,156.88,0.04311268]
[1762483101718,3.13,156.9,156.88,0.04311268]
[1762483101918,3.13,156.9,156.79,2.13]
[1762483102617,3.13,156.88,156.8,5.7427]
[1762483102824,3.17144951,156.86,156.82,0.04184845]
[1762483103229,3.13,156.85,156.82,0.04184845]
[1762483103926,0.04144951,156.86,156.82,2.17184845]
[1762483104630,3.17144951,156.86,156.82,0.04184845]
[1762483105626,0.04144951,156.86,156.82,2.17184845]
[1762483106627,0.04144951,156.86,156.85,2.13]
[1762483107431,0.04144951,156.86,156.83,6.4110171]
[1762483107734,0.04144951,156.86,156.83,2.13]
[1762483108130,0.04144951,156.86,156.84,7.8711]
[1762483108734,0.04144951,156.86,156.82,7.91394845]
[1762483108936,3.17144951,156.86,156.82,0.04184845]
[1762483109232,0.04144951,156.86,156.82,2.17184845]
[1762483111937,0.04144951,156.86,156.84,5.7412]
[1762483113034,3.17144951,156.86,156.82,5.78394845]
[1762483115336,0.04144951,156.86,156.83,5.7416]
[1762483115544,0.04144951,156.86,156.84,2.13]
[1762483116630,0.04144951,156.86,156.82,2.17184845]
[1762483116828,0.04144951,156.86,156.84,5.7412]
[1762483118232,0.04144951,156.86,156.85,2.13]
[1762483119146,3.09144951,156.86,156.82,5.78384845]
[1762483120749,3.09144951,156.86,156.82,0.04184845]
[1762483122842,3.09144951,156.86,156.73,1.10882761]
[1762483122843,3.01,156.84,156.73,4.2810171]
[1762483123046,3.01,156.82,156.71,2.14]
[1762483123338,3.01,156.85,156.73,2.14]
[1762483123545,3.01,156.83,156.73,6.4210171]
[1762483123744,0.04118476,156.8,156.76,0.04359331]
[1762483124045,3.05589958,156.8,156.76,0.04784808]
[1762483124944,3.05589958,156.8,156.76,5.79194808]
[1762483125142,3.05589958,156.8,156.76,0.04784808]
[1762483126239,3.01,156.77,156.76,0.04784808]
[1762483129940,3.01,156.77,156.69,67.44]
[1762483130750,3.01,156.77,156.71,5.7459]
[1762483130955,3.01,156.75,156.72,0.04352572]
[1762483131743,0.04239498,156.76,156.74,2.14]
[1762483132948,0.04239498,156.76,156.75,2.14]
[1762483140253,3.01,156.85,156.81,2.14]
[1762483140450,7.72806722,156.87,156.81,2.14]
[1762483140665,3.01,156.87,156.81,2.14]
[1762483140957,3.01,156.9,156.83,2.14]
[1762483141347,0.04051682,156.88,156.87,5.7401]
[1762483141754,0.04051682,156.88,156.85,0.0486253]
[1762483141954,3.05051682,156.88,156.85,0.0486253]
[1762483142459,4.72430634,156.87,156.85,0.0486253]
[1762483142664,3.01,156.86,156.85,0.0486253]
[1762483143162,7.73973066,156.86,156.85,0.0486253]
[1762483143556,3.01,156.87,156.85,0.0486253]
[1762483144261,7.7431882,156.86,156.85,0.0486253]
[1762483144665,3.01,156.85,156.79,2.14]
[1762483144857,3.01,156.83,156.79,2.14]
[1762483145760,3.01,156.83,156.79,2.18073297]
[1762483145761,3.05513307,156.83,156.79,2.18073297]
[1762483145962,3.05513307,156.83,156.79,7.92383297]
[1762483146160,0.04513307,156.83,156.8,2.14]
[1762483146360,4.73517604,156.89,156.81,2.14]
[1762483146563,7.87485209,156.97,156.85,2.14]
[1762483146564,3.01,156.93,156.85,2.14]
[1762483146766,3.01,156.91,156.85,67.32]
[1762483146965,3.01,156.89,156.85,65.18]
[1762483147364,3.05321602,156.89,156.85,0.04828083]
[1762483147561,4.73441438,156.88,156.85,0.04828083]
[1762483147866,3.05321602,156.89,156.85,0.04828083]
[1762483148066,4.73476067,156.88,156.85,0.04828083]
[1762483148267,3.05321602,156.89,156.85,0.04828083]
[1762483148468,7.74434,156.88,156.85,0.04828083]
[1762483148675,3.01,156.88,156.85,0.04828083]
[1762483149370,0.04321602,156.89,156.85,2.18828083]
[1762483149869,0.04321602,156.89,156.87,2.14]
[1762483150671,0.04321602,156.89,156.85,2.17828083]
[1762483151158,3.25321602,156.89,156.85,0.04828083]
[1762483151365,3.21,156.87,156.85,0.04828083]
[1762483153279,3.21,156.85,156.79,65.28]
[1762483153480,3.21,156.83,156.79,65.28]
[1762483154185,3.21,156.87,156.8,2.13]
[1762483154376,3.25198589,156.85,156.82,0.04311739]
[1762483154572,3.2527476,156.85,156.82,0.0469727]
[1762483155878,7.89955117,156.84,156.82,0.0469727]
[1762483156077,3.21,156.84,156.82,0.0469727]
[1762483156880,3.21,156.82,156.79,64.66401558]
[1762483157080,3.2527476,156.85,156.79,64.66401558]
[1762483157284,3.2527476,156.85,156.79,66.84401558]
[1762483157486,3.2527476,156.85,156.79,72.58711558]
[1762483157877,3.2527476,156.85,156.8,0.0435212]
[1762483158278,3.21,156.83,156.8,0.0435212]
[1762483159374,7.90145837,156.82,156.8,0.0435212]
[1762483159574,3.21,156.82,156.8,0.0435212]
[1762483160888,0.0427476,156.85,156.8,2.2235212]
[1762483161082,3.2527476,156.85,156.8,2.2235212]
[1762483162584,3.2527476,156.85,156.81,5.7424]
[1762483162993,3.2527476,156.85,156.8,0.0435212]
[1762483163183,3.2527476,156.85,156.8,2.2235212]
[1762483163989,3.2527476,156.85,156.81,5.7423]
[1762483165191,0.0427476,156.85,156.83,2.18]
[1762483166999,0.0427476,156.85,156.83,7.9216]
[1762483167293,0.0427476,156.85,156.84,2.18]
[1762483168485,5.7387,156.92,156.84,3.46]
[1762483168688,7.89998838,156.91,156.86,2.18]
[1762483168888,3.21,156.9,156.82,2.18]
[1762483169694,0.04089737,156.88,156.84,2.22873711]
[1762483170197,0.04089737,156.88,156.85,7.9209]
[1762483170895,0.04089737,156.88,156.85,2.18]
[1762483171289,0.04089737,156.88,156.85,7.9209]
[1762483171889,0.04089737,156.88,156.86,5.7405]
[1762483172486,4.93874892,156.94,156.89,2.18]
[1762483172487,4.68886519,156.93,156.89,2.18]
[1762483172689,3.21,156.98,156.89,2.18]
[1762483172895,4.6864753,156.97,156.89,2.18]
[1762483173091,3.21,156.98,156.92,5.7383]
[1762483173494,0.04564395,156.97,156.93,0.04815119]
[1762483174093,3.25564395,156.97,156.93,0.04815119]
[1762483174893,3.21,156.95,156.93,0.04815119]
[1762483175301,4.49,156.95,156.93,0.04815119]
[1762483175498,7.89377937,156.94,156.87,65.24]
[1762483175795,4.68334463,156.96,156.88,2.18]
[1762483175995,3.21,156.97,156.88,2.18]
[1762483176301,4.68333639,156.96,156.88,2.18]
[1762483176497,0.04458053,156.94,156.9,2.22157524]
[1762483178199,0.04458053,156.94,156.91,2.18]
[1762483178994,0.04458053,156.94,156.91,7.9186]
[1762483180495,0.04458053,156.94,156.93,2.18]
[1762483182305,0.04458053,156.94,156.91,2.18]
[1762483182904,0.04458053,156.94,156.92,2.18]
[1762483184101,0.04458053,156.94,156.93,2.18]
[1762483187407,7.81353106,157.0,156.95,7.9174]
[1762483187615,4.66353106,156.99,156.96,2.18]
[1762483187813,3.15,157.0,156.96,2.18]
[1762483188012,4.66290398,156.99,156.96,2.18]
[1762483188208,3.15,157.0,156.96,2.18]
[1762483188511,0.04905978,157.0,156.96,2.2282779]
[1762483188708,0.04905978,157.0,156.98,2.18]
[1762483189213,0.04905978,157.0,156.99,2.18]
[1762483198919,3.15,157.08,157.03,7.9144]
[1762483199520,3.15,157.08,157.01,70.8951]
[1762483199521,3.15,157.07,157.01,70.8951]
[1762483199818,3.15,157.05,157.02,0.04861001]
[1762483200015,0.04366903,157.06,157.02,2.22861001]
[1762483200216,3.19366903,157.06,157.02,2.22861001]
[1762483200424,0.04366903,157.06,157.03,4.00721826]
[1762483200611,0.04366903,157.06,157.04,5.7339]
[1762483201411,0.04366903,157.06,157.02,0.04861001]
[1762483201412,3.19366903,157.06,157.02,0.04861001]